fUST/lending_fUST_20250709
["ID","MTS","AMOUNT","RATE_DAILY","PERIOD"]
[370567426,1752065062519,10000.0,0.00027397,120]
[370567427,1752065064004,10000.0,0.00027397,120]
[370567428,1752065065653,10000.0,0.00027397,120]
[370567429,1752065066941,10000.0,0.00027397,120]
[370567430,1752065068386,10000.0,0.00027397,120]
[370567431,1752065074584,81719.54000447,0.000222,69]
[370567433,1752065079610,81719.54000443,0.000222,69]
[370567434,1752065082943,5600.000001,0.00027397,120]
[370567435,1752065084576,81719.54000443,0.000222,69]
[370567436,1752065089596,81719.54000443,0.00023704,75]
[370567440,1752065133148,-3000.0,0.00018972,2]
[370567441,1752065133173,-281.42138349,0.00018979,2]
[370567442,1752065133202,-460.0,0.00019178,2]
[370567443,1752065133225,-460.0,0.00019178,2]
[370567444,1752065133247,-460.0,0.00019178,2]
[370567445,1752065133270,-460.9237964,0.00019178,2]
[370567446,1752065133293,-288.5,0.00019178,2]
[370567447,1752065133316,-508.20477099,0.00019178,2]
[370567448,1752065133341,-460.0,0.00019178,2]
[370567449,1752065133366,-460.0,0.00019178,2]
[370567450,1752065133391,-460.0,0.00019178,2]
[370567451,1752065133418,-460.0,0.00019178,2]
[370567452,1752065133446,-460.0,0.00019178,2]
[370567453,1752065133471,-460.0,0.00019178,2]
[370567454,1752065133494,-460.0,0.00019178,2]
[370567456,1752065133518,-460.0,0.00019178,2]
[370567457,1752065133540,-460.0,0.00019178,2]
[370567458,1752065133562,-460.0,0.00019178,2]
[370567459,1752065133583,-460.0,0.00019178,2]
[370567460,1752065133605,-460.0,0.00019178,2]
[370567461,1752065133629,-515.2,0.00019178,2]
[370567462,1752065133652,-460.0,0.00019178,2]
[370567463,1752065133674,-460.0,0.00019178,2]
[370567464,1752065133699,-460.0,0.00019178,2]
[370567465,1752065133724,-475.08,0.00019178,2]
[370567466,1752065133746,-460.0,0.00019178,2]
[370567467,1752065133769,-460.0,0.00019178,2]
[370567468,1752065133791,-2059.7,0.00019178,2]
[370567469,1752065133815,-1410.57,0.00019178,2]
[370567470,1752065133836,-460.0,0.00019178,2]
[370567471,1752065133861,-932.05,0.00019178,2]
[370567472,1752065133883,-460.0,0.00019178,2]
[370567473,1752065133906,-800.67,0.00019178,2]
[370567474,1752065133928,-460.0,0.00019178,2]
[370567475,1752065133952,-460.0,0.00019178,2]
[370567476,1752065133974,-460.0,0.00019178,2]
[370567477,1752065133996,-1956.83,0.00019178,2]
[370567478,1752065134019,-460.0,0.00019178,2]
[370567479,1752065134040,-460.0,0.00019178,2]
[370567480,1752065134062,-521.59,0.00019178,2]
[370567481,1752065134083,-460.0,0.00019178,2]
[370567482,1752065134106,-795.92,0.00019178,2]
[370567483,1752065134128,-849.45,0.00019178,2]
[370567484,1752065134150,-660.62,0.00019178,2]
[370567485,1752065134174,-824.51,0.00019178,2]
[370567486,1752065134199,-460.0,0.00019178,2]
[370567487,1752065134221,-460.0,0.00019178,2]
[370567488,1752065134244,-460.0,0.00019178,2]
[370567489,1752065134264,-460.0,0.00019178,2]
[370567490,1752065134286,-460.0,0.00019178,2]
[370567491,1752065134308,-460.0,0.00019178,2]
[370567492,1752065134335,-491.84,0.00019178,2]
[370567493,1752065134356,-183.854579,0.00019178,2]
[370567494,1752065134378,-9943.02469176,0.00019178,2]
[370567495,1752065134399,-460.0,0.00019452,2]
[370567496,1752065134421,-460.0,0.00019452,2]
[370567497,1752065134443,-460.0,0.00019452,2]
[370567498,1752065134466,-460.0,0.00019452,2]
[370567499,1752065134489,-420.92958359,0.00019452,2]
[370567500,1752065134511,-460.0,0.00019452,2]
[370567501,1752065134533,-460.0,0.00019452,2]
[370567502,1752065134554,-460.0,0.00019452,2]
[370567503,1752065134575,-460.0,0.00019452,2]
[370567504,1752065134596,-460.0,0.00019452,2]
[370567505,1752065134619,-515.2,0.00019452,2]
[370567506,1752065134640,-460.0,0.00019452,2]
[370567507,1752065134662,-460.0,0.00019452,2]
[370567508,1752065134685,-475.08,0.00019452,2]
[370567509,1752065134709,-460.0,0.00019452,2]
[370567510,1752065134732,-460.0,0.00019452,2]
[370567511,1752065134754,-2059.7,0.00019452,2]
[370567512,1752065134779,-1410.57,0.00019452,2]
[370567513,1752065134803,-932.05,0.00019452,2]
[370567514,1752065134826,-800.67,0.00019452,2]
[370567515,1752065134850,-460.0,0.00019452,2]
[370567516,1752065134872,-460.0,0.00019452,2]
[370567517,1752065134894,-1956.83,0.00019452,2]
[370567518,1752065134916,-460.0,0.00019452,2]
[370567519,1752065134939,-521.59,0.00019452,2]
[370567520,1752065134961,-460.0,0.00019452,2]
[370567521,1752065134984,-795.92,0.00019452,2]
[370567522,1752065135006,-849.45,0.00019452,2]
[370567523,1752065135028,-660.62,0.00019452,2]
[370567524,1752065135050,-824.51,0.00019452,2]
[370567525,1752065135071,-460.0,0.00019452,2]
[370567526,1752065135093,-460.0,0.00019452,2]
[370567527,1752065135116,-460.0,0.00019452,2]
[370567528,1752065135136,-460.0,0.00019452,2]
[370567529,1752065135158,-460.0,0.00019452,2]
[370567530,1752065135179,-460.0,0.00019452,2]
[370567531,1752065135204,-491.84,0.00019452,2]
[370567532,1752065135224,-460.0,0.00019726,2]
[370567533,1752065135248,-460.0,0.00019726,2]
[370567534,1752065135271,-547.3,0.00019726,2]
[370567535,1752065135292,-460.0,0.00019726,2]
[370567536,1752065135317,-180.98891101,0.00019726,2]
[370567537,1752065135338,-534.39,0.00019726,2]
[370567538,1752065135360,-460.0,0.00019726,2]
[370567539,1752065135384,-515.2,0.00019726,2]
[370567540,1752065135408,-460.0,0.00019726,2]
[370567541,1752065135431,-475.08,0.00019726,2]
[370567542,1752065135457,-460.0,0.00019726,2]
[370567543,1752065135482,-460.0,0.00019726,2]
[370567544,1752065135505,-2059.7,0.00019726,2]
[370567545,1752065135529,-1410.57,0.00019726,2]
[370567546,1752065135552,-932.05,0.00019726,2]
[370567547,1752065135576,-800.67,0.00019726,2]
[370567548,1752065135600,-460.0,0.00019726,2]
[370567549,1752065135624,-460.0,0.00019726,2]
[370567550,1752065135647,-1956.83,0.00019726,2]
[370567551,1752065135670,-460.0,0.00019726,2]
[370567552,1752065135696,-521.59,0.00019726,2]
[370567553,1752065135719,-460.0,0.00019726,2]
[370567554,1752065135744,-795.92,0.00019726,2]
[370567555,1752065135765,-222.0,0.00019726,2]
[370567556,1752065135788,-849.45,0.00019726,2]
[370567557,1752065135811,-660.62,0.00019726,2]
[370567558,1752065135835,-824.51,0.00019726,2]
[370567559,1752065135857,-565.07,0.00019726,2]
[370567560,1752065135879,-460.0,0.00019726,2]
[370567561,1752065135902,-205.94,0.00019726,2]
[370567562,1752065135924,-460.0,0.00019726,2]
[370567563,1752065135947,-460.0,0.00019726,2]
[370567564,1752065135969,-491.84,0.00019726,2]
[370567565,1752065135991,-500.0,0.00019744,2]
[370567566,1752065136012,-300.0,0.00019744,2]
[370567567,1752065136034,-500.0,0.00019744,2]
[370567568,1752065136054,-300.0,0.00019744,2]
[370567569,1752065136076,-500.0,0.00019744,2]
[370567570,1752065136097,-300.0,0.00019744,2]
[370567571,1752065136119,-300.0,0.00019744,2]
[370567572,1752065136141,-500.0,0.00019744,2]
[370567573,1752065136163,-300.0,0.00019744,2]
[370567574,1752065136331,-500.0,0.00019744,2]
[370567575,1752065136356,-300.0,0.00019744,2]
[370567576,1752065136378,-200.0,0.00019744,2]
[370567577,1752065136401,-207.4,0.00019744,2]
[370567578,1752065136422,-460.0,0.0002,2]
[370567579,1752065136446,-557.75887039,0.0002,2]
[370567580,1752065136468,-589.95,0.0002,2]
[370567581,1752065136490,-460.0,0.0002,2]
[370567582,1752065136516,-515.2,0.0002,2]
[370567583,1752065136539,-460.0,0.0002,2]
[370567584,1752065136562,-475.08,0.0002,2]
[370567585,1752065136585,-460.0,0.0002,2]
[370567586,1752065136608,-460.0,0.0002,2]
[370567587,1752065136628,-2059.7,0.0002,2]
[370567588,1752065136655,-1410.57,0.0002,2]
[370567589,1752065136680,-932.05,0.0002,2]
[370567590,1752065136705,-800.67,0.0002,2]
[370567591,1752065136727,-460.0,0.0002,2]
[370567592,1752065136750,-460.0,0.0002,2]
[370567593,1752065136771,-1956.83,0.0002,2]
[370567594,1752065136792,-460.0,0.0002,2]
[370567595,1752065136814,-521.59,0.0002,2]
[370567596,1752065136835,-460.0,0.0002,2]
[370567597,1752065136856,-795.92,0.0002,2]
[370567598,1752065136880,-849.45,0.0002,2]
[370567599,1752065136903,-660.62,0.0002,2]
[370567600,1752065136927,-824.51,0.0002,2]
[370567601,1752065136949,-460.0,0.0002,2]
[370567602,1752065136971,-460.0,0.0002,2]
[370567603,1752065136993,-460.0,0.0002,2]
[370567604,1752065137016,-491.84,0.0002,2]
[370567605,1752065137037,-3000.0,0.00020068,2]
[370567606,1752065137057,-160.0,0.00020149,2]
[370567607,1752065137078,-12589.12013084,0.00020149,2]
[370567608,1752065137099,-848.55005627,0.00020149,2]
[370567609,1752065137121,-230.53906051,0.00020149,2]
[370567610,1752065137144,-215.27775528,0.00020149,2]
[370567611,1752065137165,-837.99933892,0.00020149,2]
[370567612,1752065137186,-214.14293035,0.00020149,2]
[370567613,1752065137208,-160.0,0.00020183,2]
[370567614,1752065137231,-160.0,0.00020183,2]
[370567615,1752065137251,-160.0,0.00020183,2]
[370567616,1752065137272,-175.191787,0.00020187,2]
[370567617,1752065137294,-157.682289,0.00020222,2]
[370567618,1752065137322,-460.0,0.00020273,2]
[370567619,1752065137353,-460.0,0.00020273,2]
[370567620,1752065137375,-515.2,0.00020273,2]
[370567621,1752065137401,-460.0,0.00020273,2]
[370567622,1752065137423,-475.08,0.00020273,2]
[370567623,1752065137444,-460.0,0.00020273,2]
[370567624,1752065137466,-460.0,0.00020273,2]
[370567625,1752065137487,-2059.7,0.00020273,2]
[370567626,1752065137509,-1410.57,0.00020273,2]
[370567627,1752065137532,-932.05,0.00020273,2]
[370567628,1752065137558,-800.67,0.00020273,2]
[370567629,1752065137581,-460.0,0.00020273,2]
[370567630,1752065137602,-460.0,0.00020273,2]
[370567631,1752065137623,-1956.83,0.00020273,2]
[370567632,1752065137645,-460.0,0.00020273,2]
[370567633,1752065137667,-521.59,0.00020273,2]
[370567634,1752065137688,-368.86475791,0.00020273,2]
[370567635,1752065137711,-795.92,0.00020273,2]
[370567636,1752065137732,-849.45,0.00020273,2]
[370567637,1752065137754,-660.62,0.00020273,2]
[370567638,1752065137775,-824.51,0.00020273,2]
[370567639,1752065137796,-460.0,0.00020273,2]
[370567640,1752065137817,-460.0,0.00020273,2]
[370567641,1752065137839,-460.0,0.00020273,2]
[370567642,1752065137860,-491.84,0.00020273,2]
[370567643,1752065137882,-157.682289,0.0002033,2]
[370567644,1752065137903,-157.682289,0.00020438,2]
[370567645,1752065137924,-463.06,0.00020537,3]
[370567646,1752065137946,-157.682289,0.00020546,2]
[370567647,1752065137966,-460.0,0.00020547,2]
[370567648,1752065137986,-460.0,0.00020547,2]
[370567649,1752065138008,-515.2,0.00020547,2]
[370567650,1752065138029,-460.0,0.00020547,2]
[370567651,1752065138050,-475.08,0.00020547,2]
[370567652,1752065138072,-460.0,0.00020547,2]
[370567653,1752065138093,-460.0,0.00020547,2]
[370567654,1752065138114,-2059.7,0.00020547,2]
[370567655,1752065138140,-1410.57,0.00020547,2]
[370567656,1752065138167,-932.05,0.00020547,2]
[370567657,1752065138189,-800.67,0.00020547,2]
[370567658,1752065138212,-460.0,0.00020547,2]
[370567659,1752065138235,-460.0,0.00020547,2]
[370567660,1752065138258,-1956.83,0.00020547,2]
[370567661,1752065138283,-460.0,0.00020547,2]
[370567662,1752065138312,-521.59,0.00020547,2]
[370567663,1752065138333,-795.92,0.00020547,2]
[370567664,1752065138355,-849.45,0.00020547,2]
[370567665,1752065138378,-660.62,0.00020547,2]
[370567666,1752065138406,-824.51,0.00020547,2]
[370567667,1752065138428,-460.0,0.00020547,2]
[370567668,1752065138452,-460.0,0.00020547,2]
[370567669,1752065138474,-460.0,0.00020547,2]
[370567670,1752065138497,-491.84,0.00020547,2]
[370567671,1752065138519,-157.682289,0.00020654,2]
[370567672,1752065138540,-189.943321,0.00020672,4]
[370567673,1752065138563,-2368.121254,0.0002071,2]
[370567674,1752065138586,-157.682289,0.00020763,2]
[370567675,1752065138606,-460.0,0.00020821,2]
[370567676,1752065138630,-460.0,0.00020821,2]
[370567677,1752065138652,-515.2,0.00020821,2]
[370567678,1752065138676,-443.389,0.00020821,2]
[370567679,1752065138700,-460.0,0.00020821,2]
[370567680,1752065138724,-475.08,0.00020821,2]
[370567681,1752065138746,-460.0,0.00020821,2]
[370567682,1752065138768,-460.0,0.00020821,2]
[370567683,1752065138789,-2059.7,0.00020821,2]
[370567684,1752065138812,-1410.57,0.00020821,2]
[370567685,1752065138836,-932.05,0.00020821,2]
[370567686,1752065138861,-800.67,0.00020821,2]
[370567687,1752065138886,-460.0,0.00020821,2]
[370567688,1752065138908,-460.0,0.00020821,2]
[370567689,1752065138930,-1956.83,0.00020821,2]
[370567690,1752065138956,-460.0,0.00020821,2]
[370567691,1752065138980,-521.59,0.00020821,2]
[370567692,1752065139002,-795.92,0.00020821,2]
[370567693,1752065139025,-849.45,0.00020821,2]
[370567694,1752065139049,-660.62,0.00020821,2]
[370567695,1752065139072,-824.51,0.00020821,2]
[370567696,1752065139094,-460.0,0.00020821,2]
[370567697,1752065139117,-460.0,0.00020821,2]
[370567698,1752065139140,-293.14,0.00020821,2]
[370567699,1752065139164,-491.84,0.00020821,2]
[370567700,1752065139188,-157.682289,0.00020871,2]
[370567701,1752065139216,-1409.54205775,0.000209,4]
[370567702,1752065139237,-157.682289,0.00020979,2]
[370567703,1752065139258,-351.04859632,0.00021069,2]
[370567704,1752065139278,-500.0,0.00021069,2]
[370567705,1752065139299,-500.0,0.00021069,2]
[370567706,1752065139323,-500.0,0.00021069,2]
[370567707,1752065139345,-500.0,0.00021069,2]
[370567708,1752065139372,-1409.54205754,0.00021072,4]
[370567709,1752065139391,-502.77859223,0.00021079,4]
[370567710,1752065139415,-3000.0,0.0002108,2]
[370567711,1752065139438,-157.682289,0.00021087,2]
[370567712,1752065139461,-3000.0,0.0002109,2]
[370567713,1752065139483,-330.68202131,0.00021094,2]
[370567714,1752065139506,-2368.121254,0.00021094,4]
[370567715,1752065139527,-151.291787,0.00021095,2]
[370567716,1752065139548,-151.0,0.00021095,2]
[370567717,1752065139568,-460.0,0.00021095,2]
[370567718,1752065139590,-460.0,0.00021095,2]
[370567719,1752065139613,-515.2,0.00021095,2]
[370567720,1752065139635,-460.0,0.00021095,2]
[370567721,1752065139657,-475.08,0.00021095,2]
[370567722,1752065139680,-460.0,0.00021095,2]
[370567723,1752065139704,-460.0,0.00021095,2]
[370567724,1752065139724,-2059.7,0.00021095,2]
[370567725,1752065139750,-1410.57,0.00021095,2]
[370567726,1752065139778,-932.05,0.00021095,2]
[370567727,1752065139801,-800.67,0.00021095,2]
[370567728,1752065139826,-460.0,0.00021095,2]
[370567729,1752065139848,-460.0,0.00021095,2]
[370567730,1752065139870,-1956.83,0.00021095,2]
[370567731,1752065139893,-460.0,0.00021095,2]
[370567732,1752065139918,-521.59,0.00021095,2]
[370567733,1752065139941,-795.92,0.00021095,2]
[370567734,1752065139970,-849.45,0.00021095,2]
[370567735,1752065139992,-660.62,0.00021095,2]
[370567736,1752065140014,-824.51,0.00021095,2]
[370567737,1752065140037,-460.0,0.00021095,2]
[370567738,1752065140060,-460.0,0.00021095,2]
[370567739,1752065140082,-491.84,0.00021095,2]
[370567740,1752065140103,-3000.0,0.000211,2]
[370567741,1752065140260,-168.0,0.00021105,2]
[370567742,1752065140281,-3000.0,0.0002111,2]
[370567743,1752065140302,-500.0,0.00021111,2]
[370567744,1752065140328,-215.0738,0.00021113,2]
[370567745,1752065140351,-3000.0,0.0002112,2]
[370567746,1752065140372,-3000.0,0.0002113,2]
[370567747,1752065140394,-3000.0,0.0002114,2]
[370567748,1752065140415,-3000.0,0.0002115,2]
[370567749,1752065140437,-3000.0,0.0002116,2]
[370567750,1752065140461,-500.0,0.00021162,2]
[370567751,1752065140485,-500.0,0.00021162,2]
[370567752,1752065140508,-500.0,0.00021162,2]
[370567753,1752065140532,-500.0,0.00021162,2]
[370567754,1752065140556,-500.0,0.00021162,2]
[370567755,1752065140578,-500.0,0.00021162,2]
[370567756,1752065140602,-500.0,0.00021162,2]
[370567757,1752065140624,-500.0,0.00021162,2]
[370567758,1752065140647,-500.0,0.00021162,2]
[370567759,1752065140671,-500.0,0.00021162,2]
[370567760,1752065140693,-500.0,0.00021162,2]
[370567761,1752065140717,-500.0,0.00021162,2]
[370567762,1752065140741,-500.0,0.00021162,2]
[370567763,1752065140764,-500.0,0.00021162,2]
[370567764,1752065140789,-500.0,0.00021162,2]
[370567765,1752065140813,-1441.19831308,0.00021162,2]
[370567766,1752065140838,-1441.19831308,0.00021162,2]
[370567767,1752065140863,-1441.19831308,0.00021162,2]
[370567768,1752065140888,-1441.19831308,0.00021162,2]
[370567769,1752065140913,-1441.19831308,0.00021162,2]
[370567770,1752065140937,-1441.19831308,0.00021162,2]
[370567771,1752065140963,-1441.19831308,0.00021162,2]
[370567772,1752065140990,-1441.19831308,0.00021162,2]
[370567773,1752065141016,-1441.19831308,0.00021162,2]
[370567774,1752065141042,-1441.19831308,0.00021162,2]
[370567775,1752065141066,-1441.19831308,0.00021162,2]
[370567776,1752065141090,-1684.71113151,0.00021162,2]
[370567777,1752065141111,-3000.0,0.00021164,2]
[370567778,1752065141134,-3000.0,0.0002117,2]
[370567779,1752065141157,-3000.0,0.0002118,2]
[370567780,1752065141178,-3000.0,0.0002119,2]
[370567781,1752065141201,-157.682289,0.00021195,2]
[370567782,1752065141223,-3000.0,0.000212,2]
[370567783,1752065141245,-3000.0,0.0002121,2]
[370567784,1752065141267,-3000.0,0.0002122,2]
[370567785,1752065141289,-168.0,0.00021223,2]
[370567786,1752065141314,-3000.0,0.0002123,2]
[370567787,1752065141335,-3000.0,0.0002124,2]
[370567788,1752065141362,-1409.54205754,0.00021245,4]
[370567789,1752065141385,-440.0,0.00021248,2]
[370567790,1752065141408,-3000.0,0.0002125,2]
[370567791,1752065141429,-3000.0,0.0002126,2]
[370567792,1752065141452,-198.54547979,0.0002126,2]
[370567793,1752065141473,-500.0,0.0002126,2]
[370567794,1752065141494,-500.0,0.0002126,2]
[370567795,1752065141515,-12819.92850842,0.00021269,2]
[370567797,1752065158136,-460.0,0.00019178,2]
[370567798,1752065158159,-460.0,0.00019178,2]
[370567799,1752065158185,-460.0,0.00019452,2]
[370567800,1752065158209,-460.0,0.00019452,2]
[370567801,1752065158231,-460.0,0.00019726,2]
[370567802,1752065158253,-460.0,0.00019726,2]
[370567803,1752065158276,-460.0,0.0002,2]
[370567804,1752065158297,-460.0,0.0002,2]
[370567805,1752065158324,-460.0,0.00020273,2]
[370567806,1752065158344,-460.0,0.00020273,2]
[370567807,1752065158367,-460.0,0.00020547,2]
[370567808,1752065158387,-460.0,0.00020547,2]
[370567809,1752065158410,-460.0,0.00020821,2]
[370567810,1752065158433,-554.59777939,0.00020821,2]
[370567811,1752065158453,-162.808561,0.00020843,4]
[370567812,1752065158476,-460.0,0.00021095,2]
[370567813,1752065158497,-7767.36669385,0.00021269,2]
[370567814,1752065158516,-1000.0,0.0002127,2]
[370567815,1752065158538,-5277.036385,0.0002127,2]
[370567816,1752065158558,-176.990253,0.00021281,2]
[370567817,1752065158580,-1746.72,0.000213,2]
[370567818,1752065158603,-157.682289,0.00021303,2]
[370567819,1752065158623,-612.40959,0.00021348,2]
[370567820,1752065158644,-612.40959,0.00021348,2]
[370567821,1752065158663,-151.0,0.00021369,2]
[370567822,1752065158684,-151.0,0.00021369,2]
[370567823,1752065158704,-151.0,0.00021369,2]
[370567824,1752065158724,-151.0,0.00021369,2]
[370567825,1752065158744,-151.0,0.00021369,2]
[370567826,1752065158767,-151.0,0.00021369,2]
[370567827,1752065158788,-151.0,0.00021369,2]
[370567828,1752065158809,-151.0,0.00021369,2]
[370567829,1752065158829,-151.0,0.00021369,2]
[370567830,1752065158849,-151.0,0.00021369,2]
[370567831,1752065158872,-460.0,0.00021369,2]
[370567832,1752065159030,-460.0,0.00021369,2]
[370567833,1752065159052,-460.0,0.00021369,2]
[370567834,1752065159076,-460.0,0.00021369,2]
[370567835,1752065159097,-2059.7,0.00021369,2]
[370567836,1752065159119,-1410.57,0.00021369,2]
[370567837,1752065159145,-932.05,0.00021369,2]
[370567838,1752065159167,-800.67,0.00021369,2]
[370567839,1752065159189,-460.0,0.00021369,2]
[370567840,1752065159212,-297.67,0.00021369,2]
[370567841,1752065159234,-1956.83,0.00021369,2]
[370567842,1752065159257,-460.0,0.00021369,2]
[370567843,1752065159280,-521.59,0.00021369,2]
[370567844,1752065159303,-795.92,0.00021369,2]
[370567845,1752065159327,-849.45,0.00021369,2]
[370567846,1752065159350,-660.62,0.00021369,2]
[370567847,1752065159375,-824.51,0.00021369,2]
[370567848,1752065159398,-185.51,0.00021369,2]
[370567849,1752065159420,-222.01,0.00021369,2]
[370567850,1752065159443,-491.84,0.00021369,2]
[370567851,1752065159467,-460.0,0.00021369,2]
[370567852,1752065159489,-157.682289,0.00021411,2]
[370567853,1752065159515,-1409.54205754,0.00021417,5]
[370567854,1752065159538,-440.0,0.00021426,2]
[370567855,1752065159560,-440.0,0.00021442,2]
[370567856,1752065159580,-151.0,0.00021454,2]
[370567857,1752065159602,-151.0,0.000215,3]
[370567858,1752065159624,-157.682289,0.0002152,2]
[370567859,1752065159645,-151.0,0.00021555,2]
[370567860,1752065159666,-154.295007,0.00021555,2]
[370567861,1752065159686,-228.511178,0.00021555,2]
[370567862,1752065159707,-228.511178,0.00021555,2]
[370567863,1752065159728,-151.0,0.00021555,2]
[370567864,1752065159749,-151.0,0.00021555,2]
[370567865,1752065159770,-210.73448,0.00021555,2]
[370567866,1752065159790,-153.822867,0.00021555,2]
[370567867,1752065159809,-151.0,0.00021555,2]
[370567868,1752065159840,-2368.121254,0.00021555,5]
[370567869,1752065159869,-1409.54205754,0.0002159,5]
[370567870,1752065159892,-151.0,0.000216,3]
[370567871,1752065159913,-255.0,0.0002161,2]
[370567872,1752065159934,-157.97725699,0.00021615,2]
[370567873,1752065159954,-838.77437153,0.00021617,2]
[370567874,1752065159976,-522.75019543,0.00021617,2]
[370567875,1752065159997,-1000.0,0.00021617,2]
[370567876,1752065160025,-157.682289,0.00021628,2]
[370567877,1752065160047,-151.0,0.00021643,2]
[370567878,1752065160069,-151.0,0.00021643,2]
[370567879,1752065160091,-151.0,0.00021643,2]
[370567880,1752065160113,-460.0,0.00021643,2]
[370567881,1752065160135,-429.4,0.00021643,2]
[370567882,1752065160158,-460.0,0.00021643,2]
[370567883,1752065160182,-460.0,0.00021643,2]
[370567884,1752065160205,-2059.7,0.00021643,2]
[370567885,1752065160229,-1410.57,0.00021643,2]
[370567886,1752065160253,-932.05,0.00021643,2]
[370567887,1752065160277,-800.67,0.00021643,2]
[370567888,1752065160299,-460.0,0.00021643,2]
[370567889,1752065160324,-1956.83,0.00021643,2]
[370567890,1752065160347,-460.0,0.00021643,2]
[370567891,1752065160370,-521.59,0.00021643,2]
[370567892,1752065160392,-795.92,0.00021643,2]
[370567893,1752065160417,-849.45,0.00021643,2]
[370567894,1752065160440,-660.62,0.00021643,2]
[370567895,1752065160463,-824.51,0.00021643,2]
[370567896,1752065160489,-491.84,0.00021643,2]
[370567897,1752065160512,-460.0,0.00021643,2]
[370567898,1752065160536,-351.04859629,0.00021736,2]
[370567899,1752065160558,-157.682289,0.00021736,2]
[370567900,1752065160587,-1409.54205754,0.00021762,5]
[370567901,1752065160614,-8551.33671167,0.0002178,2]
[370567902,1752065160635,-151.0,0.000218,3]
[370567903,1752065160656,-1000.0,0.00021808,2]
[370567904,1752065160677,-1000.0,0.00021808,2]
[370567905,1752065160700,-157.682289,0.00021844,2]
[370567906,1752065160722,-2368.121254,0.00021882,2]
[370567907,1752065160744,-3144.39,0.00021908,10]
[370567908,1752065160765,-2821.10488369,0.00021916,2]
[370567909,1752065160785,-151.0,0.00021917,2]
[370567910,1752065160806,-151.0,0.00021917,2]
[370567911,1752065160826,-310.86882,0.00021917,2]
[370567912,1752065160846,-310.86882,0.00021917,2]
[370567913,1752065160867,-261.783266,0.00021917,2]
[370567914,1752065160887,-261.783266,0.00021917,2]
[370567915,1752065160907,-151.0,0.00021917,2]
[370567916,1752065160927,-151.0,0.00021917,2]
[370567917,1752065160948,-151.0,0.00021917,2]
[370567918,1752065160969,-460.0,0.00021917,2]
[370567919,1752065160995,-460.0,0.00021917,2]
[370567920,1752065161019,-460.0,0.00021917,2]
[370567921,1752065161042,-2059.7,0.00021917,2]
[370567922,1752065161064,-1410.57,0.00021917,2]
[370567923,1752065161090,-932.05,0.00021917,2]
[370567924,1752065161114,-800.67,0.00021917,2]
[370567925,1752065161141,-460.0,0.00021917,2]
[370567926,1752065161164,-1956.83,0.00021917,2]
[370567927,1752065161186,-460.0,0.00021917,2]
[370567928,1752065161209,-521.59,0.00021917,2]
[370567929,1752065161234,-795.92,0.00021917,2]
[370567930,1752065161258,-849.45,0.00021917,2]
[370567931,1752065161280,-660.62,0.00021917,2]